Cogmind - Beta 13 @@@ ROGUE MODE // 2024.04.06 @ 22:55:26 Player: f_ Result: Destroyed by D-53 Grenadier with Mini Grenade Launcher Performance ------------- Evolutions (0) 0 Regions Visited (2) 400 Robots Destroyed (16) 80 Value Destroyed (426) 426 Prototype IDs (0) 0 Alien Tech Used (0) 0 Bonus (0) 0 TOTAL SCORE: 906 Bonus ------- None Cogmind --------- Core Integrity 0/250 Matter 300/300 Energy 250/250 System Corruption 0% Temperature Cool (0) Movement Rolling (200) Ox8 Location -10/Mines Parts ------- > --- POWER (1) -------- Ion Engine > --- PROPULSION (2) --- Wheel > --- UTILITY (2) ------ Huge Storage Unit Visual Processing Unit > --- WEAPON (2) ------- Small Laser > --- INVENTORY (25) --- Light Ion Engine Light Treads Light Treads Aluminum Leg Aluminum Leg Heat Sink Improved Heat Sink Small Storage Unit Sensor Array Signal Interpreter Peak State ------------ > --- POWER ------------ Light Ion Engine > --- PROPULSION ------- Compact Wheel Compact Wheel > --- UTILITY ---------- Small Storage Unit Visual Processing Unit > --- WEAPON ----------- Medium Laser Assault Rifle > --- INVENTORY -------- Light Ion Engine Light Treads Light Treads Medium Laser [Rating: 8] Favorites ----------- Power Light Ion Engine Engine Light Ion Engine Propulsion Compact Wheel Wheel Compact Wheel Utility Visual Processing Unit Storage Huge Storage Unit Processor Visual Processing Unit Weapon Medium Laser Energy Gun Medium Laser Ballistic Gun Assault Rifle Build | -11 -10 -10 ------- Run | Yrd Mat Min Slots Evolved . | . . . Power . | . . . Propulsion . | . . . Utility . | . . . Weapon . | . . . Parts Attached 13 | 6 6 1 Power 2 | 1 1 . Engine 2 | 1 1 . Core . | . . . Reactor . | . . . Propulsion 3 | 2 1 . Treads . | . . . Leg . | . . . Wheel 3 | 2 1 . Hover . | . . . Flight . | . . . Utility 3 | 1 2 . Device . | . . . Storage 2 | 1 1 . Processor 1 | . 1 . Hackware . | . . . Protection . | . . . Artifact . | . . . Weapon 5 | 2 2 1 Energy Gun 4 | 1 2 1 Energy Cannon . | . . . Ballistic Gun 1 | 1 . . Ballistic Cannon . | . . . Launcher . | . . . Special Weapon . | . . . Impact Weapon . | . . . Slashing Weapon . | . . . Piercing Weapon . | . . . Special Melee Weapon . | . . . Unidentified Prototypes . | . . . Parts Lost 7 | . 4 3 Power 1 | . 1 . Propulsion 2 | . 1 1 Utility . | . . . Weapon 4 | . 2 2 Highest Loss Streak 3 | . 3 3 To Critical Strikes . | . . . Average Slot Usage (%) 81 | . 84 72 Engine 7 | . 5 14 Wheel 21 | . 23 15 Storage 14 | . 14 14 Processor 12 | . 12 14 Energy Gun 17 | . 18 14 Ballistic Gun 6 | . 9 . Naked Turns . | . . . Heaviest Build 88 | 12 88 86 Greatest Support 32 | 32 32 26 Greatest Overweight (x) 8 | . 5 8 Average Overweight (x) 3 | . 2 7 Largest Inventory Capacity 25 | 8 25 25 Average Capacity 21 | 7 22 25 Most Carried 10 | 4 8 10 Average Carried 6 | 1 6 9 Final Capacity 25 | 8 25 25 Final Carried 10 | 4 7 10 Class Distribution -------------------- 72% | Mutant 27% | Scavenger-Mutant Dominant Class ---------------- Mutant | -10/Materials Scavenger-Mutant | -10/Mines Resources | -11 -10 -10 ----------- Run | Yrd Mat Min Matter Collected 402 | 130 272 . Remotely . | . . . Salvage Created 613 | . 532 81 Parts 31 | . 27 4 Haulers Intercepted 1 | . 1 . Recyclers Shooed 2 | . 2 . Parts Field Recycled . | . . . Retrieved Matter . | . . . Parts Self-Destructed . | . . . Prevented . | . . . Kills | -11 -10 -10 ------- Run | Yrd Mat Min Combat Hostiles Destroyed 11 | . 9 2 Guns 11 | . 9 2 Classes Destroyed 5 | . 5 . Worker 2 | . 2 . Hauler 1 | . 1 . Recycler 1 | . 1 . Watcher 1 | . 1 . Grunt 11 | . 9 2 Best Kill Streak 4 | . 4 1 Combat Bots Only 3 | . 3 1 Max Kills in Single Turn 1 | . 1 1 Gunslinging . | . . . Exploded . | . . . Melee . | . . . Uniques/NPCs Destroyed . | . . . Combat | -11 -10 -10 -------- Run | Yrd Mat Min Hostile Shots Fired 81 | . 53 28 Missed 16 | . 8 8 Damage Taken 834 | . 546 288 Core 260 | . 163 97 Absorbed by Shields . | . . . Core Remaining (%) 100 | 100 . . Volleys Fired 72 | . 57 15 Largest 2 | . 2 2 Hottest 90 | . 90 90 Shots Fired 126 | . 106 20 Gun 126 | . 106 20 Cannon . | . . . Launcher . | . . . Special . | . . . Kinetic 34 | . 34 . Thermal 92 | . 72 20 Explosive . | . . . Electromagnetic . | . . . Robot Hit Streak 8 | . 8 6 Robot Miss Streak 2 | . 2 2 Penetration Max . | . . . Secondary Targets . | . . . Shots Hit Robots 89 | . 75 14 Core Hits 30 | . 25 5 Critical Kills . | . . . Critical Parts Destroyed . | . . . Critical Strikes 5 | . 5 . Burn 5 | . 5 . Melee Attacks . | . . . Impact . | . . . Slashing . | . . . Piercing . | . . . Sneak Attacks . | . . . Combat Hostiles . | . . . Follow-up Attacks . | . . . Damage Inflicted 1104 | . 919 185 Guns 1104 | . 919 185 Cannons . | . . . Explosions . | . . . Melee . | . . . Ramming . | . . . Kinetic 267 | . 267 . Thermal 837 | . 652 185 Explosive . | . . . Electromagnetic . | . . . Impact . | . . . Slashing . | . . . Piercing . | . . . Highest Corruption . | . . . Average Corruption . | . . . Corruption Purged . | . . . Corruption Blocked . | . . . Overload Shots . | . . . Overflow Damage . | . . . Projectiles . | . . . Explosions . | . . . Melee . | . . . Knockbacks . | . . . Impact . | . . . Kinetic . | . . . Secondary . | . . . Self-Inflicted Damage . | . . . Shots . | . . . Rammed . | . . . Targets Rammed . | . . . Kicked . | . . . Crushed . | . . . Highest Temperature 225 | . 121 225 Average Temperature 66 | . 44 143 Received Heat Transfer 537 | . 363 174 Effects 1 | . . 1 Energy Bleed 1 | . . 1 Siege Activations . | . . . Robots Corrupted . | . . . Combat Hostiles . | . . . Parts Fried . | . . . Impact Corruptions . | . . . Robots Melted . | . . . Combat Hostiles . | . . . Parts Melted 4 | . 1 3 Heat Transferred 2648 | . 2212 436 Parts Sabotaged . | . . . Parts Stolen . | . . . Parts Stripped . | . . . Power Chain Reactions . | . . . Alert | -11 -10 -10 ------- Run | Yrd Mat Min Peak Influence 190 | . 190 51 Initial 31 | . . 31 Average 60 | . 69 47 Maximum Alert Level . | . . . Low Security (%) 100 | 100 100 100 Level 1 . | . . . Level 2 . | . . . Level 3 . | . . . Level 4 . | . . . Level 5 . | . . . High Security . | . . . Max Security . | . . . Squads Dispatched 2 | . 2 . Investigation 2 | . 2 . Extermination . | . . . Reinforcement . | . . . Assault . | . . . Garrison . | . . . Intercept . | . . . Searches Triggered . | . . . Construction Impeded . | . . . Haulers Reinforced . | . . . Active Scanning Responses . | . . . Cargo Convoy Interrupts . | . . . Stealth | -11 -10 -10 --------- Run | Yrd Mat Min Distress Signals . | . . . Communications Jammed . | . . . Distress Signals . | . . . Times Spotted 24 | . 14 10 Peak Tracking Total 9 | . 3 9 Tactical Retreats 1 | . 1 . Traps | -11 -10 -10 ------- Run | Yrd Mat Min Traps Triggered . | . . . Indirectly . | . . . Trap Hack Attempts . | . . . Triggered . | . . . Disarmed . | . . . Reprogrammed . | . . . Reused . | . . . Traps Extracted . | . . . Installed . | . . . Triggered . | . . . Machines | -11 -10 -10 ---------- Run | Yrd Mat Min Machines Disabled . | . . . Max in Single Turn . | . . . Machines Repaired . | . . . Machines Dismantled . | . . . Machines Sabotaged . | . . . Overloaded Fab Kills . | . . . Hacking | -11 -10 -10 --------- Run | Yrd Mat Min Machines Accessed 2 | . 2 . Terminals 2 | . 2 . Fabricators . | . . . Repair Stations . | . . . Recycling Units . | . . . Scanalyzers . | . . . Garrison Access . | . . . Total Hacks 5 | . 5 . Successful . | . . . Failed 5 | . 5 . Catastrophic 2 | . 2 . Database Lockouts . | . . . Manual 5 | . 5 . Terminals 5 | . 5 . Fabricators . | . . . Repair Stations . | . . . Recycling Units . | . . . Scanalyzers . | . . . Garrison Access . | . . . Terminal Hacks . | . . . Fabricator Hacks . | . . . Repair Station Hacks . | . . . Recycling Unit Hacks . | . . . Scanalyzer . | . . . Garrison Access Hacks . | . . . Unauthorized Hacks . | . . . Terminals . | . . . Fabricators . | . . . Repair Stations . | . . . Recycling Units . | . . . Scanalyzers . | . . . Garrison Access . | . . . Data Cores Recovered . | . . . Used . | . . . Hacking Detections 2 | . 2 . Full Trace Events 2 | . 2 . Feedback Events . | . . . Feedback Blocked . | . . . Robot Schematics Acquired . | . . . Robots Built . | . . . Authchips . | . . . Time . | . . . Total Robot Build Rating . | . . . Part Schematics Acquired . | . . . Parts Built . | . . . Authchips . | . . . Time . | . . . Total Part Build Rating . | . . . Parts Repaired . | . . . Time . | . . . Parts Recycled . | . . . Recycled Matter . | . . . Retrieved Matter . | . . . Retrieved Components . | . . . Parts Scanalyzed . | . . . Part Schematics Acquired . | . . . Parts Damaged . | . . . Bothacking | -11 -10 -10 ------------ Run | Yrd Mat Min Used RIF Installer . | . . . Robots Hacked . | . . . Non-combat . | . . . Combat . | . . . Robot Hacks Applied . | . . . Relay Couplers Released . | . . . Fabnet Peak Effective % . | . . . Robots Rewired . | . . . Allies Hacked . | . . . Hacks Repelled . | . . . Allies | -11 -10 -10 -------- Run | Yrd Mat Min Total Allies . | . . . Largest Group . | . . . Highest-Rated Group . | . . . Highest-Rated Ally . | . . . Total Orders . | . . . Ally Attacks . | . . . Total Damage . | . . . Kills . | . . . Allies Corrupted . | . . . Allies Melted . | . . . Intel | -11 -10 -10 ------- Run | Yrd Mat Min Robot Analysis Total . | . . . Derelict Logs Recovered . | . . . Drone Launches . | . . . Drone Recoveries . | . . . Exploration | -11 -10 -10 ------------- Run | Yrd Mat Min Turns Passed 936 | 54 646 236 Spaces Moved 482 | 43 340 99 Core 2 | 2 . . Treads . | . . . Legs . | . . . Wheels 480 | 41 340 99 Hover . | . . . Flight . | . . . Fastest Speed 50 | 50 100 135 Average Speed 141 | 97 130 198 Slowest Speed 200 | 100 175 200 Overloaded Moves . | . . . Propulsion Burnouts . | . . . Robots Hopped . | . . . Cave-ins Triggered . | . . . Exploration Rate (%) 26 | 4 52 23 Regions Visited 2 Branch Regions 1 Pre-discovered Areas . | . . . Known Exits Taken . | . . . Unknown Exits Taken 2 | 1 1 . Scrap Searched . | . . . Spaces Dug . | . . . Terrain Destroyed . | . . . Melee . | . . . Projectile . | . . . AOE . | . . . Terrain Rammed . | . . . Walls Destroyed . | . . . Machines Disabled . | . . . Actions | -11 -10 -10 --------- Run | Yrd Mat Min Total 603 | 52 433 118 Wait 27 | . 27 . Move 480 | 42 339 99 Hop . | . . . Pick Up 11 | 4 4 3 Fast Attach 10 | 6 3 1 Attach 2 | . 2 . Detach . | . . . Swap 1 | . 1 . Drop . | . . . Fire 72 | . 57 15 Melee . | . . . Ram . | . . . Kick . | . . . Crush . | . . . Escape Stasis . | . . . Rewire . | . . . Trap . | . . . Miscellaneous . | . . . Route ------- -11/Scrapyard -10/Materials (discovered 2 exits: [*Mat] / [*Min]) -10/Mines History --------- Turn | Location | Event 8 | -11/Scrapyard | Discovered new exit (range 15) 55 | -11/Scrapyard | Entered Materials 303 | -10/Materials | Build established: Mutant 416 | -10/Materials | Discovered new exit (range 18) 481 | -10/Materials | Core integrity fell below 50% 515 | -10/Materials | Lost 3 parts (1n2w) 652 | -10/Materials | Discovered new exit (range 7) 701 | -10/Materials | Entered Mines 722 | -10/Mines | Core integrity fell below 20% 760 | -10/Mines | Lost 3 parts (1n2w) 914 | -10/Mines | Assembled infested the area 937 | -10/Mines | Destroyed by D-53 Grenadier with Mini Grenade Launcher Last Messages --------------- 00715_ Overheating: Energy bleed (-25). 00715_ Med. Laser destroyed. 00716_ Aluminum Leg melted. 00716_ Heat Sink melted. 00716_ G-34 Mercenary destroyed. 00721_ Critical hit (Burn: +37). 00723_ Acquired Sml. Laser. 00723_ Sml. Laser destroyed. 00729_ Com. Wheel destroyed. 00740_ Lgt. Nuclear Core melted. 00740_ G-47 Trooper destroyed. 00746_ Acquired Imp. Heat Sink. 00753_ Acquired Aluminum Leg. 00878_ K-01 Serf collects debris. 00914_ ALERT: Infestation in the mines, dispatching Demolisher response squad. 00933_ as-73546 sneak attacks. 00936_ C-30 ARC bursts open, deploying its payload. 00936_ D-53 Grenadier unfolds itself. Map ----- +----------------------------------------------------+ | ?????????????????????????????????????????????????? | | ?????????????????????????????????????????????????? | | ?????????????????????????????????????????????????? | | ?????????????????????????????????????????????????? | | ?????????????????????????????????????????????????? | | ?????????????????????????????????????????????????? | | ?????????????????????????????????????????????????? | | ?????????????????????????????????????????????????? | | ???????????????????###???????????????????????????? | | ???????????????????# ???????????????????????????? | | ???????????????????# #???????????????????????????? | | ???????????????????#a#???????????????????????????? | | ???????????????????# #???????????????????????????? | | ?????????????????###a##??????????????????????????? | | ????????????????## a ##?????????????????????????? | | ???????????????## *aa#?????????????? ??????????? | | ??????????????## ##???????????? ?????????? | | ??????????????# a #??????????? #????????? | | ?????????????## ##?###???? #????????? | | ????????????## ## ##?? #?????????? | | ???????????## ### r r ## d % #?????????? | | ????######## #### d#?????????????? | | #??## #### ##?????????????? | | #### #?# ##??????????????? | | """ #?## ##???????????????? | | """ ##??#@ ######????????????????? | | """ ##???# #?????????????????????? | | ## #???? #?????????????????????? | | # ########## #????####?????????????????????? | | # #????????### #?????????????????????????????? | | # #####??????## ##?????????????????????????????? | | # #???????# ###??????????????????????????????? | | ##### ######### #????????????????????????????????? | | ## #????????????????????????????????? | | ############ #????????????????????????????????? | | "" #??????????# #????????????????????????????????? | | "" #??????????# #????????????????????????????????? | | "" #??????????# #????????????????????????????????? | | ############ ## #????????????????????????????? | | #????????????????????????????? | | #####################????????????????????????????? | | ?????????????????????????????????????????????????? | | ?????????????????????????????????????????????????? | | | | | | | | | | | | | | | +----------------------------------------------------+ Best States ------------- Heat Dissipation 25 Energy Generation 10 Energy Capacity 250 Matter Stores 300 Matter Capacity 300 Sight Range 18 Terrain Scan Density 10 Evasion (%) 40 Item Schematics ----------------- None Robot Schematics ------------------ None Fabricated ------------ Nothing Alien Tech Used ----------------- None Achievements -------------- None Challenges ------------ None Game ------ Seed HardlightTiamatMicrothruster Manual? 0 Play Time 00:12:27 Cumulative 158.4 hours Start 2024.04.06 @ 22:43:10 End 2024.04.06 @ 22:55:26 Sessions 1 Manual Loads 0 Difficulty Rogue Special Mode None Game No. 125 Rogue 120 Adventurer 0 Explorer 5 Win Type - Total 4 Types 1/0/1/2/0/0/0/0/0 Lore% 50 Gallery% 60 Achievement% 46 Wizard Run 0 Options --------- Layout 1 ASCII 0 Keyboard 0 Movement Mouse Keybinds 0 Fullscreen 2 Font 24/Tamsyn Map View 50x35 Zoom Use 0% Tactical HUD 1 Map Filters NONE Filters NONE Steam 1 RUN: 21a72691-52c6-4184-9b2d-8845f92e2073